[Event "*** Titled Tuesday Blitz"]
[Site "Chess.com"]
[Date "2019.12.03"]
[Round "8"]
[White "misha_melnichuk"]
[Black "MateusViageiro"]
[Result "1-0"]
[WhiteElo "2477"]
[BlackElo "2191"]
[TimeControl "180+2"]
[EndTime "14:56:33 PST"]
[Termination "misha_melnichuk won on time"]

1. Nf3 {[%clk 0:03:01.9]} 1... Nf6 {[%clk 0:03:00.8]} 2. d4 {[%clk 0:03:01.1]}
2... e6 {[%clk 0:02:59.9]} 3. c4 {[%clk 0:03:02.5]} 3... b6 {[%clk 0:03:00.4]}
4. Nc3 {[%clk 0:03:02.8]} 4... Bb4 {[%clk 0:03:00.3]} 5. Qc2 {[%clk 0:03:01.9]}
5... Ba6 {[%clk 0:03:00]} 6. a3 {[%clk 0:03:03.5]} 6... Bxc3+ {[%clk 0:02:58.6]}
7. Qxc3 {[%clk 0:03:05.4]} 7... O-O {[%clk 0:02:56.1]} 8. b3 {[%clk 0:03:00.6]}
8... d5 {[%clk 0:02:55.5]} 9. e3 {[%clk 0:03:01.2]} 9... Nbd7 {[%clk 0:02:55.5]}
10. Bb2 {[%clk 0:03:02.2]} 10... Rc8 {[%clk 0:02:50.2]} 11. b4 {[%clk
0:02:07.5]} 11... c5 {[%clk 0:02:46.2]} 12. dxc5 {[%clk 0:02:07]} 12... dxc4
{[%clk 0:02:37]} 13. cxb6 {[%clk 0:01:56.9]} 13... Nxb6 {[%clk 0:02:34.6]} 14.
Be2 {[%clk 0:01:45.7]} 14... Na4 {[%clk 0:02:34.3]} 15. Qc2 {[%clk 0:01:46.2]}
15... Nxb2 {[%clk 0:02:33.9]} 16. Qxb2 {[%clk 0:01:47.5]} 16... c3 {[%clk
0:02:34.2]} 17. Qc2 {[%clk 0:01:48.9]} 17... Bxe2 {[%clk 0:02:33]} 18. Qxe2
{[%clk 0:01:49.5]} 18... Nd5 {[%clk 0:02:26]} 19. O-O {[%clk 0:01:49.1]} 19...
a5 {[%clk 0:02:24.2]} 20. b5 {[%clk 0:01:40.4]} 20... Qb6 {[%clk 0:02:21]} 21.
a4 {[%clk 0:01:34.5]} 21... Nb4 {[%clk 0:02:19.6]} 22. Nd4 {[%clk 0:01:32.6]}
22... e5 {[%clk 0:02:17.1]} 23. Nc2 {[%clk 0:01:29.7]} 23... Rfd8 {[%clk
0:02:14.1]} 24. Rfd1 {[%clk 0:01:28.6]} 24... Qg6 {[%clk 0:02:00]} 25. e4 {[%clk
0:01:04.5]} 25... Nxc2 {[%clk 0:01:49.4]} 26. Qxc2 {[%clk 0:01:03.8]} 26... Rd4
{[%clk 0:01:48.6]} 27. f3 {[%clk 0:00:41.2]} 27... Qd6 {[%clk 0:01:42.6]} 28.
Rab1 {[%clk 0:00:34.8]} 28... h5 {[%clk 0:01:38]} 29. h3 {[%clk 0:00:24.1]}
29... Qc5 {[%clk 0:01:28.8]} 30. Kh2 {[%clk 0:00:22.8]} 30... Rcd8 {[%clk
0:01:27.7]} 31. Rdc1 {[%clk 0:00:18.7]} 31... Rc4 {[%clk 0:01:18.4]} 32. b6
{[%clk 0:00:18]} 32... Rb4 {[%clk 0:00:48.6]} 33. b7 {[%clk 0:00:15.6]} 33...
Qb6 {[%clk 0:00:41.3]} 34. Ra1 {[%clk 0:00:08.4]} 34... Rb3 {[%clk 0:00:37.8]}
35. Rab1 {[%clk 0:00:07.8]} 35... Rb2 {[%clk 0:00:33.9]} 36. Rxb2 {[%clk
0:00:07.8]} 36... cxb2 {[%clk 0:00:34.1]} 37. Rb1 {[%clk 0:00:09]} 37... Qxb7
{[%clk 0:00:34.8]} 38. Rxb2 {[%clk 0:00:10.4]} 38... Qd7 {[%clk 0:00:34.6]} 39.
Rb5 {[%clk 0:00:10.7]} 39... Qe7 {[%clk 0:00:30.5]} 40. Rxa5 {[%clk 0:00:08.9]}
40... Qg5 {[%clk 0:00:31.3]} 41. Rd5 {[%clk 0:00:07.9]} 41... Rb8 {[%clk
0:00:26]} 42. Qd2 {[%clk 0:00:08.8]} 42... Qf6 {[%clk 0:00:22.6]} 43. Rd6 {[%clk
0:00:09]} 43... Qe7 {[%clk 0:00:20.9]} 44. a5 {[%clk 0:00:08.9]} 44... h4 {[%clk
0:00:19.5]} 45. a6 {[%clk 0:00:08.4]} 45... Ra8 {[%clk 0:00:18.4]} 46. Rd7
{[%clk 0:00:07.4]} 46... Qf6 {[%clk 0:00:18.2]} 47. a7 {[%clk 0:00:08]} 47...
Kh7 {[%clk 0:00:17]} 48. Kg1 {[%clk 0:00:08.1]} 48... Qb6+ {[%clk 0:00:16.6]}
49. Kh2 {[%clk 0:00:08]} 49... Rxa7 {[%clk 0:00:17.4]} 50. Rxa7 {[%clk
0:00:08.3]} 50... Qxa7 {[%clk 0:00:18.3]} 51. Qg5 {[%clk 0:00:09.9]} 51... f6
{[%clk 0:00:17.2]} 52. Qxh4+ {[%clk 0:00:10.7]} 52... Kg8 {[%clk 0:00:19.1]} 53.
Qg4 {[%clk 0:00:12]} 53... Qb6 {[%clk 0:00:18.8]} 54. h4 {[%clk 0:00:13.1]}
54... Qd6 {[%clk 0:00:16.3]} 55. h5 {[%clk 0:00:13.8]} 55... Kh7 {[%clk
0:00:17.3]} 56. Qg6+ {[%clk 0:00:14.6]} 56... Kh8 {[%clk 0:00:17.3]} 57. Kh3
{[%clk 0:00:11.7]} 57... Qe6+ {[%clk 0:00:16.9]} 58. Kg3 {[%clk 0:00:12.8]}
58... Qe7 {[%clk 0:00:15.8]} 59. Kg4 {[%clk 0:00:13]} 59... Qe6+ {[%clk
0:00:16.7]} 60. Qf5 {[%clk 0:00:14.3]} 60... Qf7 {[%clk 0:00:17.6]} 61. Qg6
{[%clk 0:00:13.9]} 61... Qe6+ {[%clk 0:00:18.6]} 62. Kh4 {[%clk 0:00:15.5]}
62... Qe7 {[%clk 0:00:12.7]} 63. g3 {[%clk 0:00:13.3]} 63... f5+ {[%clk
0:00:10.2]} 64. Qg5 {[%clk 0:00:14.8]} 64... Qa3 {[%clk 0:00:07.3]} 65. Qxf5
{[%clk 0:00:15.2]} 65... Qa1 {[%clk 0:00:07]} 66. Kg4 {[%clk 0:00:15.8]} 66...
Qc3 {[%clk 0:00:05.8]} 67. Qe6 {[%clk 0:00:14.4]} 67... Qa1 {[%clk 0:00:02.8]}
68. Kf5 {[%clk 0:00:14.3]} 1-0

[Event "*** Titled Tuesday Blitz"]
[Site "Chess.com"]
[Date "2019.12.03"]
[Round "8"]
[White "KRASAVCHIK2002"]
[Black "Alexander_Donchenko"]
[Result "1-0"]
[WhiteElo "2503"]
[BlackElo "2723"]
[TimeControl "180+2"]
[EndTime "14:56:46 PST"]
[Termination "KRASAVCHIK2002 won by checkmate"]

1. e4 {[%clk 0:03:01.9]} 1... c5 {[%clk 0:02:56.7]} 2. Nf3 {[%clk 0:03:01.4]}
2... e6 {[%clk 0:02:57.2]} 3. d4 {[%clk 0:03:01.7]} 3... cxd4 {[%clk 0:02:58.3]}
4. Nxd4 {[%clk 0:03:03.6]} 4... Nf6 {[%clk 0:02:59.6]} 5. Nc3 {[%clk 0:03:03]}
5... Nc6 {[%clk 0:03:01]} 6. Ndb5 {[%clk 0:02:39.1]} 6... Bc5 {[%clk 0:03:01.1]}
7. Bf4 {[%clk 0:02:38.2]} 7... O-O {[%clk 0:03:00.6]} 8. Bd6 {[%clk 0:02:29.7]}
8... b6 {[%clk 0:02:48]} 9. Bxc5 {[%clk 0:02:19.2]} 9... bxc5 {[%clk 0:02:48.9]}
10. Nd6 {[%clk 0:02:14.1]} 10... Rb8 {[%clk 0:02:48]} 11. Rb1 {[%clk 0:02:07.6]}
11... Qa5 {[%clk 0:02:40.7]} 12. Nc4 {[%clk 0:02:04.5]} 12... Qc7 {[%clk
0:02:23.4]} 13. Qd6 {[%clk 0:02:01.7]} 13... Qxd6 {[%clk 0:02:04.1]} 14. Nxd6
{[%clk 0:02:03.6]} 14... Ne8 {[%clk 0:02:04.1]} 15. Nxe8 {[%clk 0:02:02.8]}
15... Rxe8 {[%clk 0:02:06]} 16. Bd3 {[%clk 0:02:00]} 16... Nb4 {[%clk 0:02:02]}
17. Kd2 {[%clk 0:01:56.2]} 17... Nxd3 {[%clk 0:02:00.5]} 18. cxd3 {[%clk
0:01:55.3]} 18... Ba6 {[%clk 0:01:51.1]} 19. Rhc1 {[%clk 0:01:54]} 19... d6
{[%clk 0:01:49.2]} 20. b3 {[%clk 0:01:44.4]} 20... Rb4 {[%clk 0:01:48.2]} 21.
Ne2 {[%clk 0:01:25.2]} 21... f6 {[%clk 0:01:29.8]} 22. a3 {[%clk 0:01:20.7]}
22... Rb6 {[%clk 0:01:30.3]} 23. b4 {[%clk 0:01:18.9]} 23... Reb8 {[%clk
0:01:30.7]} 24. Ra1 {[%clk 0:01:07]} 24... cxb4 {[%clk 0:01:09.6]} 25. axb4
{[%clk 0:01:08.9]} 25... R8b7 {[%clk 0:01:07.4]} 26. Nd4 {[%clk 0:01:02.4]}
26... Kf7 {[%clk 0:01:03.4]} 27. Nc6 {[%clk 0:01:00.7]} 27... Rd7 {[%clk
0:00:58.4]} 28. b5 {[%clk 0:00:49.4]} 28... Bxb5 {[%clk 0:00:57.2]} 29. Nxa7
{[%clk 0:00:50.7]} 29... Ba6 {[%clk 0:00:50.8]} 30. Nc8 {[%clk 0:00:49.4]} 30...
Rb2+ {[%clk 0:00:44.5]} 31. Ke3 {[%clk 0:00:49]} 31... Bb7 {[%clk 0:00:30.8]}
32. Na7 {[%clk 0:00:46.1]} 32... d5 {[%clk 0:00:27.9]} 33. Nc6 {[%clk
0:00:46.3]} 33... dxe4 {[%clk 0:00:24.4]} 34. dxe4 {[%clk 0:00:44.7]} 34... Rb3+
{[%clk 0:00:21.1]} 35. Ke2 {[%clk 0:00:42.9]} 35... Rb2+ {[%clk 0:00:22.4]} 36.
Ke3 {[%clk 0:00:43.9]} 36... Rdd2 {[%clk 0:00:17.9]} 37. Ra7 {[%clk 0:00:40.6]}
37... Re2+ {[%clk 0:00:18.8]} 38. Kd3 {[%clk 0:00:40]} 38... Kg6 {[%clk
0:00:12.1]} 39. Rxb7 {[%clk 0:00:37.9]} 39... Red2+ {[%clk 0:00:11.9]} 40. Kc3
{[%clk 0:00:35.8]} 40... Rxb7 {[%clk 0:00:03.6]} 41. Kxd2 {[%clk 0:00:36.5]}
41... Rb2+ {[%clk 0:00:04.8]} 42. Rc2 {[%clk 0:00:37.1]} 42... Rb3 {[%clk
0:00:06.3]} 43. Nd4 {[%clk 0:00:36]} 43... Rb4 {[%clk 0:00:07.8]} 44. Nxe6
{[%clk 0:00:34.8]} 44... Rxe4 {[%clk 0:00:08.4]} 45. Nc5 {[%clk 0:00:35.8]}
45... Rh4 {[%clk 0:00:08.4]} 46. h3 {[%clk 0:00:36.3]} 46... Rd4+ {[%clk
0:00:09.6]} 47. Ke3 {[%clk 0:00:36.7]} 47... Rd5 {[%clk 0:00:09.9]} 48. Nd3
{[%clk 0:00:37.5]} 48... Rg5 {[%clk 0:00:08.9]} 49. Nf4+ {[%clk 0:00:37.2]}
49... Kh6 {[%clk 0:00:09.2]} 50. Kf3 {[%clk 0:00:36.2]} 50... Ra5 {[%clk
0:00:09.5]} 51. Rc3 {[%clk 0:00:35.7]} 51... g5 {[%clk 0:00:09.5]} 52. Ne2
{[%clk 0:00:36.6]} 52... Kg6 {[%clk 0:00:10.2]} 53. g4 {[%clk 0:00:33.1]} 53...
h5 {[%clk 0:00:10.2]} 54. Ng3 {[%clk 0:00:30.7]} 54... hxg4+ {[%clk 0:00:10.3]}
55. hxg4 {[%clk 0:00:32.6]} 55... Ra4 {[%clk 0:00:07.8]} 56. Ne4 {[%clk
0:00:33.9]} 56... Ra6 {[%clk 0:00:06.3]} 57. Ng3 {[%clk 0:00:32.6]} 57... Ra4
{[%clk 0:00:07.1]} 58. Nf5 {[%clk 0:00:29.4]} 58... Rb4 {[%clk 0:00:07.7]} 59.
Kg3 {[%clk 0:00:17.5]} 59... Ra4 {[%clk 0:00:08.1]} 60. f3 {[%clk 0:00:17.2]}
60... Rb4 {[%clk 0:00:09.2]} 61. Rc6 {[%clk 0:00:18.1]} 61... Ra4 {[%clk
0:00:08.3]} 62. Ne7+ {[%clk 0:00:18.9]} 62... Kf7 {[%clk 0:00:09.5]} 63. Nd5
{[%clk 0:00:19.8]} 63... f5 {[%clk 0:00:06.9]} 64. Rf6+ {[%clk 0:00:20.2]} 64...
Kg7 {[%clk 0:00:08.3]} 65. Rxf5 {[%clk 0:00:22.1]} 65... Kg6 {[%clk 0:00:09.8]}
66. Ne7+ {[%clk 0:00:21.5]} 66... Kh6 {[%clk 0:00:10.6]} 67. Ng8+ {[%clk
0:00:20.4]} 67... Kg6 {[%clk 0:00:10.9]} 68. Nf6 {[%clk 0:00:21.9]} 68... Ra1
{[%clk 0:00:08.2]} 69. Ne4 {[%clk 0:00:22.8]} 69... Rg1+ {[%clk 0:00:09.2]} 70.
Kf2 {[%clk 0:00:23.8]} 70... Ra1 {[%clk 0:00:10.6]} 71. Rxg5+ {[%clk 0:00:25.2]}
71... Kh6 {[%clk 0:00:12.2]} 72. Rc5 {[%clk 0:00:25.6]} 72... Ra2+ {[%clk
0:00:12.8]} 73. Kg3 {[%clk 0:00:26.5]} 73... Ra1 {[%clk 0:00:14]} 74. Kf4 {[%clk
0:00:27.1]} 74... Ra6 {[%clk 0:00:14.2]} 75. Rd5 {[%clk 0:00:25.4]} 75... Kg7
{[%clk 0:00:13.5]} 76. g5 {[%clk 0:00:25.4]} 76... Ra1 {[%clk 0:00:13.5]} 77.
Kf5 {[%clk 0:00:25.6]} 77... Ra8 {[%clk 0:00:12.9]} 78. f4 {[%clk 0:00:26.4]}
78... Rf8+ {[%clk 0:00:13.6]} 79. Kg4 {[%clk 0:00:27.5]} 79... Re8 {[%clk
0:00:12.1]} 80. Ng3 {[%clk 0:00:27]} 80... Kg6 {[%clk 0:00:09.4]} 81. f5+ {[%clk
0:00:27.2]} 81... Kg7 {[%clk 0:00:10.2]} 82. Rd7+ {[%clk 0:00:27.2]} 82... Kh8
{[%clk 0:00:10.5]} 83. g6 {[%clk 0:00:25.1]} 83... Ra8 {[%clk 0:00:10.3]} 84.
Kg5 {[%clk 0:00:25.5]} 84... Ra5 {[%clk 0:00:09.6]} 85. Rd8+ {[%clk 0:00:23.7]}
85... Kg7 {[%clk 0:00:10.9]} 86. Nh5# {[%clk 0:00:24.9]} 1-0

[Event "*** Titled Tuesday Blitz"]
[Site "Chess.com"]
[Date "2019.12.03"]
[Round "8"]
[White "sergoy"]
[Black "rogapa"]
[Result "1-0"]
[WhiteElo "2901"]
[BlackElo "2725"]
[TimeControl "180+2"]
[EndTime "14:57:16 PST"]
[Termination "sergoy won by resignation"]

1. d4 {[%clk 0:03:00]} 1... d5 {[%clk 0:02:59.3]} 2. c4 {[%clk 0:03:00.9]} 2...
e6 {[%clk 0:03:00.6]} 3. Nf3 {[%clk 0:03:01.9]} 3... Nf6 {[%clk 0:03:01.5]} 4.
Nc3 {[%clk 0:03:03.1]} 4... Be7 {[%clk 0:03:02.8]} 5. Bf4 {[%clk 0:03:03.8]}
5... O-O {[%clk 0:03:04.1]} 6. e3 {[%clk 0:03:05.2]} 6... Nbd7 {[%clk
0:03:04.2]} 7. c5 {[%clk 0:03:05.7]} 7... b6 {[%clk 0:02:50.4]} 8. b4 {[%clk
0:02:57]} 8... a5 {[%clk 0:02:48.6]} 9. a3 {[%clk 0:02:58]} 9... c6 {[%clk
0:02:36.3]} 10. h3 {[%clk 0:02:58.7]} 10... Ba6 {[%clk 0:02:22.5]} 11. Bxa6
{[%clk 0:02:54.3]} 11... Rxa6 {[%clk 0:02:23]} 12. b5 {[%clk 0:02:55.5]} 12...
cxb5 {[%clk 0:02:15.6]} 13. c6 {[%clk 0:02:57.4]} 13... b4 {[%clk 0:02:14.3]}
14. Nb5 {[%clk 0:02:50.9]} 14... bxa3 {[%clk 0:02:11.4]} 15. O-O {[%clk
0:02:30.2]} 15... Ne4 {[%clk 0:02:03]} 16. cxd7 {[%clk 0:02:26.1]} 16... Qxd7
{[%clk 0:02:03.8]} 17. Nxa3 {[%clk 0:02:26.8]} 17... b5 {[%clk 0:02:04.3]} 18.
Qd3 {[%clk 0:02:24]} 18... Rb6 {[%clk 0:02:03.7]} 19. Nb1 {[%clk 0:02:24.5]}
19... Ra8 {[%clk 0:02:02.7]} 20. Nfd2 {[%clk 0:02:22.8]} 20... Nxd2 {[%clk
0:01:55.6]} 21. Nxd2 {[%clk 0:02:22.3]} 21... b4 {[%clk 0:01:56.8]} 22. Nb3
{[%clk 0:02:20.9]} 22... a4 {[%clk 0:01:57]} 23. Nc5 {[%clk 0:02:22]} 23... Qe8
{[%clk 0:01:41]} 24. Rfb1 {[%clk 0:02:12.8]} 24... b3 {[%clk 0:01:39.3]} 25. e4
{[%clk 0:02:03.9]} 25... dxe4 {[%clk 0:01:36.3]} 26. Qxe4 {[%clk 0:02:02.6]}
26... Rb4 {[%clk 0:01:31]} 27. Nxb3 {[%clk 0:01:43.4]} 27... Bf6 {[%clk
0:01:10.3]} 28. Bd2 {[%clk 0:01:31.5]} 28... Rc4 {[%clk 0:01:00.8]} 29. Qd3
{[%clk 0:01:24.2]} 29... Rac8 {[%clk 0:01:00.5]} 30. Rc1 {[%clk 0:01:17.2]}
30... Qb5 {[%clk 0:00:27.8]} 31. Rxc4 {[%clk 0:01:17.2]} 31... Rxc4 {[%clk
0:00:25.4]} 32. Rc1 {[%clk 0:01:18.1]} 32... Rxc1+ {[%clk 0:00:25.5]} 33. Nxc1
{[%clk 0:01:18]} 33... Qxd3 {[%clk 0:00:26.4]} 34. Nxd3 {[%clk 0:01:19.1]} 34...
Bxd4 {[%clk 0:00:26.7]} 35. Bb4 {[%clk 0:01:20.2]} 35... f5 {[%clk 0:00:26.4]}
36. Kf1 {[%clk 0:01:19.6]} 36... Kf7 {[%clk 0:00:26.6]} 37. f4 {[%clk
0:01:20.1]} 37... Kf6 {[%clk 0:00:26.9]} 38. Bd6 {[%clk 0:01:18.4]} 38... Kf7
{[%clk 0:00:24.8]} 39. Ke2 {[%clk 0:01:13.6]} 39... h6 {[%clk 0:00:25.2]} 40. h4
{[%clk 0:01:06.1]} 40... Kg6 {[%clk 0:00:23.6]} 41. g3 {[%clk 0:01:00]} 41...
Kh5 {[%clk 0:00:24.2]} 42. Kf3 {[%clk 0:00:50.7]} 42... g5 {[%clk 0:00:23.4]}
43. hxg5 {[%clk 0:00:51.2]} 43... hxg5 {[%clk 0:00:24.3]} 44. Be7 {[%clk
0:00:52.5]} 44... g4+ {[%clk 0:00:17.7]} 45. Ke2 {[%clk 0:00:52.1]} 45... Kg6
{[%clk 0:00:19.2]} 46. Bb4 {[%clk 0:00:33.8]} 46... Kf7 {[%clk 0:00:19.7]} 47.
Nc5 {[%clk 0:00:33.5]} 47... e5 {[%clk 0:00:18.5]} 48. Nxa4 {[%clk 0:00:31.2]}
48... exf4 {[%clk 0:00:19.2]} 49. gxf4 {[%clk 0:00:32.4]} 49... Ke6 {[%clk
0:00:20.6]} 50. Nc3 {[%clk 0:00:18.4]} 50... Bg1 {[%clk 0:00:20.6]} 51. Bf8
{[%clk 0:00:13.4]} 51... Bd4 {[%clk 0:00:20.3]} 52. Kd3 {[%clk 0:00:10]} 52...
Bb6 {[%clk 0:00:21.1]} 53. Ne2 {[%clk 0:00:10.7]} 53... Kd5 {[%clk 0:00:21.4]}
54. Be7 {[%clk 0:00:09.9]} 54... Bc7 {[%clk 0:00:21.3]} 55. Bh4 {[%clk
0:00:10.7]} 55... Bb6 {[%clk 0:00:22.1]} 56. Ng3 {[%clk 0:00:11]} 56... Ke6
{[%clk 0:00:22.2]} 57. Ke2 {[%clk 0:00:12]} 57... Bc7 {[%clk 0:00:22.8]} 58. Bg5
{[%clk 0:00:13.5]} 58... Bb6 {[%clk 0:00:23.2]} 59. Kf1 {[%clk 0:00:14.4]} 59...
Bc5 {[%clk 0:00:24.1]} 60. Kg2 {[%clk 0:00:16]} 60... Bd6 {[%clk 0:00:25]} 61.
Nh5 {[%clk 0:00:17.1]} 61... Kd5 {[%clk 0:00:24.6]} 62. Kg3 {[%clk 0:00:14]}
62... Bb8 {[%clk 0:00:22.1]} 63. Nf6+ {[%clk 0:00:14.6]} 63... Ke6 {[%clk
0:00:22.6]} 64. Ne8 {[%clk 0:00:14.7]} 64... Kd5 {[%clk 0:00:21.1]} 65. Nf6+
{[%clk 0:00:14.8]} 65... Ke6 {[%clk 0:00:22]} 66. Nh5 {[%clk 0:00:15.3]} 66...
Kd5 {[%clk 0:00:22.4]} 67. Kg2 {[%clk 0:00:16.1]} 67... Bc7 {[%clk 0:00:22.6]}
68. Ng3 {[%clk 0:00:17.2]} 68... Ke6 {[%clk 0:00:23.2]} 69. Ne2 {[%clk
0:00:18.3]} 69... Bb6 {[%clk 0:00:24.4]} 70. Bh4 {[%clk 0:00:19.1]} 70... Be3
{[%clk 0:00:25.5]} 71. Bf2 {[%clk 0:00:20]} 71... Bd2 {[%clk 0:00:26.5]} 72. Bh4
{[%clk 0:00:18.6]} 72... Kd5 {[%clk 0:00:26.8]} 73. Bg5 {[%clk 0:00:19.9]} 73...
Ke6 {[%clk 0:00:26.6]} 74. Nd4+ {[%clk 0:00:20.3]} 74... Kd5 {[%clk 0:00:27.2]}
75. Nxf5 {[%clk 0:00:21.5]} 75... Ke4 {[%clk 0:00:28.4]} 76. Ng3+ {[%clk
0:00:22.6]} 76... Kd5 {[%clk 0:00:28.8]} 77. Kf1 {[%clk 0:00:23.9]} 77... Kd4
{[%clk 0:00:29.2]} 78. Ke2 {[%clk 0:00:25.1]} 78... Bc1 {[%clk 0:00:30.2]} 79.
Bh6 {[%clk 0:00:22.7]} 79... Kd5 {[%clk 0:00:29.7]} 80. Kd3 {[%clk 0:00:23.6]}
80... Ba3 {[%clk 0:00:28.6]} 81. Bg5 {[%clk 0:00:22.6]} 81... Bc5 {[%clk
0:00:29.4]} 82. Ne4 {[%clk 0:00:20.9]} 82... Bd4 {[%clk 0:00:22]} 83. Nf6+
{[%clk 0:00:21.9]} 83... Bxf6 {[%clk 0:00:19.4]} 84. Bxf6 {[%clk 0:00:23.8]}
84... g3 {[%clk 0:00:20.9]} 85. Bh4 {[%clk 0:00:24.2]} 85... g2 {[%clk 0:00:22]}
86. Bf2 {[%clk 0:00:25.6]} 86... Ke6 {[%clk 0:00:23.2]} 87. Ke3 {[%clk
0:00:26.2]} 87... Kf5 {[%clk 0:00:24.3]} 88. Kf3 {[%clk 0:00:27.4]} 88... g1=N+
{[%clk 0:00:24.1]} 89. Bxg1 {[%clk 0:00:28.1]} 1-0

[Event "*** Titled Tuesday Blitz"]
[Site "Chess.com"]
[Date "2019.12.03"]
[Round "9"]
[White "Jbd735"]
[Black "Jadeit90"]
[Result "1-0"]
[WhiteElo "2445"]
[BlackElo "2296"]
[TimeControl "180+2"]
[EndTime "15:01:11 PST"]
[Termination "Jbd735 won by resignation"]

1. d4 {[%clk 0:03:01.9]} 1... g6 {[%clk 0:03:01.1]} 2. e4 {[%clk 0:03:02.4]}
2... Bg7 {[%clk 0:03:02.6]} 3. Nf3 {[%clk 0:03:01.9]} 3... c5 {[%clk 0:03:03.8]}
4. c3 {[%clk 0:03:01.7]} 4... cxd4 {[%clk 0:03:05.2]} 5. cxd4 {[%clk 0:03:02.3]}
5... d6 {[%clk 0:03:07.1]} 6. h3 {[%clk 0:03:00.4]} 6... Nf6 {[%clk 0:03:08.4]}
7. Nc3 {[%clk 0:03:00.8]} 7... O-O {[%clk 0:03:10]} 8. Bg5 {[%clk 0:02:58.2]}
8... a6 {[%clk 0:03:10.7]} 9. Be2 {[%clk 0:02:56.8]} 9... b5 {[%clk 0:03:05.2]}
10. a3 {[%clk 0:02:32.2]} 10... Bb7 {[%clk 0:02:43.1]} 11. Qd3 {[%clk
0:02:24.2]} 11... Nc6 {[%clk 0:02:39.9]} 12. b4 {[%clk 0:02:18.4]} 12... Rc8
{[%clk 0:02:40]} 13. O-O {[%clk 0:02:18]} 13... h6 {[%clk 0:02:37.2]} 14. Be3
{[%clk 0:02:12.4]} 14... d5 {[%clk 0:02:35.7]} 15. e5 {[%clk 0:02:07.4]} 15...
Ne8 {[%clk 0:02:36]} 16. Nd2 {[%clk 0:02:01.7]} 16... e6 {[%clk 0:02:30.2]} 17.
Nb3 {[%clk 0:02:01.7]} 17... Nb8 {[%clk 0:02:27.1]} 18. Nc5 {[%clk 0:02:01.5]}
18... Qb6 {[%clk 0:02:26.9]} 19. Qd2 {[%clk 0:01:55.3]} 19... Kh7 {[%clk
0:02:27.5]} 20. Rfb1 {[%clk 0:01:51.2]} 20... Bc6 {[%clk 0:02:25.9]} 21. a4
{[%clk 0:01:47.4]} 21... Nd7 {[%clk 0:02:26.1]} 22. axb5 {[%clk 0:01:45.8]}
22... Bxb5 {[%clk 0:02:25.8]} 23. Bxb5 {[%clk 0:01:40.9]} 1-0

[Event "*** Titled Tuesday Blitz"]
[Site "Chess.com"]
[Date "2019.12.03"]
[Round "9"]
[White "brendan174"]
[Black "j2806"]
[Result "1-0"]
[WhiteElo "2104"]
[BlackElo "1910"]
[TimeControl "180+2"]
[EndTime "15:01:20 PST"]
[Termination "brendan174 won by resignation"]

1. d4 {[%clk 0:03:01.9]} 1... Nf6 {[%clk 0:02:58]} 2. Nc3 {[%clk 0:03:02.8]}
2... e6 {[%clk 0:02:58.7]} 3. e4 {[%clk 0:03:03.6]} 3... d5 {[%clk 0:02:53.9]}
4. e5 {[%clk 0:03:04.1]} 4... Nfd7 {[%clk 0:02:52.2]} 5. Nf3 {[%clk 0:03:04.9]}
5... c5 {[%clk 0:02:50.5]} 6. dxc5 {[%clk 0:03:05.6]} 6... Bxc5 {[%clk
0:02:45.9]} 7. Bd3 {[%clk 0:03:05.8]} 7... Nc6 {[%clk 0:02:40.4]} 8. Bf4 {[%clk
0:03:06.3]} 8... a6 {[%clk 0:02:33.1]} 9. Qe2 {[%clk 0:02:59.8]} 9... Qc7 {[%clk
0:02:18.9]} 10. O-O {[%clk 0:02:56.7]} 10... O-O {[%clk 0:02:16.2]} 11. Bxh7+
{[%clk 0:02:44.8]} 11... Kxh7 {[%clk 0:02:12.9]} 12. Ng5+ {[%clk 0:02:45.8]}
12... Kg6 {[%clk 0:01:54.9]} 13. Qd3+ {[%clk 0:02:25.1]} 13... f5 {[%clk
0:01:02.9]} 14. exf6+ {[%clk 0:02:24.6]} 14... Kxf6 {[%clk 0:01:01.7]} 15. Bxc7
{[%clk 0:02:25.5]} 1-0

[Event "*** Titled Tuesday Blitz"]
[Site "Chess.com"]
[Date "2019.12.03"]
[Round "9"]
[White "Aleksandr_Kozak"]
[Black "Vyacheslav_N"]
[Result "1-0"]
[WhiteElo "2326"]
[BlackElo "2474"]
[TimeControl "180+2"]
[EndTime "15:02:14 PST"]
[Termination "Aleksandr_Kozak won by checkmate"]

1. e4 {[%clk 0:03:01.9]} 1... c5 {[%clk 0:03:00.7]} 2. c3 {[%clk 0:03:02.1]}
2... d5 {[%clk 0:02:58.9]} 3. exd5 {[%clk 0:03:02.4]} 3... Qxd5 {[%clk
0:03:00.3]} 4. d4 {[%clk 0:03:04]} 4... g6 {[%clk 0:03:00.9]} 5. Nf3 {[%clk
0:03:05.4]} 5... Bg7 {[%clk 0:03:00.9]} 6. Na3 {[%clk 0:03:06.9]} 6... Nf6
{[%clk 0:02:58.3]} 7. Bc4 {[%clk 0:03:01.4]} 7... Qd8 {[%clk 0:02:53.3]} 8. Qb3
{[%clk 0:02:39.1]} 8... O-O {[%clk 0:02:52]} 9. dxc5 {[%clk 0:02:39.1]} 9... Na6
{[%clk 0:02:52.1]} 10. Be3 {[%clk 0:02:39.1]} 10... Ne4 {[%clk 0:02:47.1]} 11.
Rd1 {[%clk 0:02:33.9]} 11... Qc7 {[%clk 0:02:37.2]} 12. Nb5 {[%clk 0:02:22.2]}
12... Qb8 {[%clk 0:02:37.9]} 13. Bxf7+ {[%clk 0:02:12.8]} 13... Rxf7 {[%clk
0:02:27.7]} 14. Rd8+ {[%clk 0:02:11.9]} 14... Bf8 {[%clk 0:02:28.4]} 15. Bh6
{[%clk 0:02:02.9]} 15... e6 {[%clk 0:02:02.1]} 16. Qc4 {[%clk 0:02:00.4]} 16...
Naxc5 {[%clk 0:01:25]} 17. Qd4 {[%clk 0:01:55.7]} 17... a6 {[%clk 0:00:53.7]}
18. Rxf8+ {[%clk 0:01:54]} 18... Rxf8 {[%clk 0:00:54.4]} 19. Qg7# {[%clk
0:01:55.9]} 1-0

[Event "*** Titled Tuesday Blitz"]
[Site "Chess.com"]
[Date "2019.12.03"]
[Round "9"]
[White "PavelChernomordik"]
[Black "skoularikii"]
[Result "0-1"]
[WhiteElo "2449"]
[BlackElo "2548"]
[TimeControl "180+2"]
[EndTime "15:02:15 PST"]
[Termination "skoularikii won by checkmate"]

1. e4 {[%clk 0:03:01.9]} 1... c5 {[%clk 0:02:53.9]} 2. Nc3 {[%clk 0:03:01.9]}
2... Nc6 {[%clk 0:02:50.8]} 3. Bb5 {[%clk 0:03:02]} 3... e6 {[%clk 0:02:50.1]}
4. Bxc6 {[%clk 0:03:02.1]} 4... bxc6 {[%clk 0:02:50.8]} 5. e5 {[%clk 0:03:03.2]}
5... f6 {[%clk 0:02:51.3]} 6. f4 {[%clk 0:03:02]} 6... Ne7 {[%clk 0:02:46.6]} 7.
Nf3 {[%clk 0:02:49.1]} 7... d5 {[%clk 0:02:29.7]} 8. exd6 {[%clk 0:02:48.5]}
8... Nd5 {[%clk 0:02:27.4]} 9. Ne2 {[%clk 0:02:44.7]} 9... Bxd6 {[%clk 0:02:28]}
10. d3 {[%clk 0:02:41.9]} 10... Qa5+ {[%clk 0:02:24.1]} 11. c3 {[%clk
0:02:41.9]} 11... Ba6 {[%clk 0:02:22]} 12. O-O {[%clk 0:02:39]} 12... c4 {[%clk
0:02:20.3]} 13. d4 {[%clk 0:02:35.9]} 13... O-O {[%clk 0:02:19.9]} 14. Bd2
{[%clk 0:02:30]} 14... Qb5 {[%clk 0:02:13.7]} 15. Qc2 {[%clk 0:02:22.6]} 15...
Rab8 {[%clk 0:02:14.2]} 16. Rab1 {[%clk 0:02:22.9]} 16... Nb6 {[%clk 0:02:08.7]}
17. Ng3 {[%clk 0:02:19.8]} 17... Qd5 {[%clk 0:02:05.2]} 18. Rfe1 {[%clk
0:02:12.1]} 18... Rfe8 {[%clk 0:02:05.9]} 19. Ne4 {[%clk 0:02:07.7]} 19... Bf8
{[%clk 0:02:04.8]} 20. Re2 {[%clk 0:01:57.5]} 20... Nd7 {[%clk 0:02:04]} 21.
Rbe1 {[%clk 0:01:56.6]} 21... c5 {[%clk 0:02:04.6]} 22. Bc1 {[%clk 0:01:54.2]}
22... cxd4 {[%clk 0:02:04.7]} 23. Nxd4 {[%clk 0:01:54.8]} 23... Nc5 {[%clk
0:01:50.4]} 24. Nf2 {[%clk 0:01:53.3]} 24... Nd3 {[%clk 0:01:50.1]} 25. Rxe6
{[%clk 0:01:45.3]} 25... Nxe1 {[%clk 0:01:49.1]} 26. Qe2 {[%clk 0:01:37.1]}
26... Qxg2# {[%clk 0:01:49]} 0-1